Cogmind - Beta 15 @@@ ROGUE MODE // 2025.08.12 @ 20:55:44 Player: Zedx Result: Destroyed by G-50 Soldier with Heavy Laser Performance ------------- Evolutions (3) 1500 Regions Visited (7) 1400 Robots Destroyed (89) 445 Value Destroyed (3267) 3267 Prototype IDs (6) 120 Alien Tech Used (0) 0 Bonus (709) 709 TOTAL SCORE: 7441 Bonus ------- High Alert Combat Kills 109 Met Imprinter 300 Was Imprinted 300 Cogmind --------- Core Integrity 0/700 Matter 282/300 Energy 16/160 System Corruption 0% Temperature Cool (14) Movement Rolling (95) Location -6/Proximity Caves Parts ------- > --- POWER (2) -------- Light Nuclear Core > --- PROPULSION (3) --- Armored Wheel Armored Huge Wheel > --- UTILITY (6) ------ Advanced Visual Processing Unit Improved Sensor Array Improved Sensor Array Target Analyzer Improved Shield Generator Hacking Drone Bay (1/1) > --- WEAPON (2) ------- Advanced Assault Cannon CR-A16's Pointy Stick > --- INVENTORY (5) ---- Armored Wheel Armored Huge Wheel Arc Projector Peak State ------------ > --- POWER ------------ Improved Deuterium Engine Meta Core > --- PROPULSION ------- Advanced Treads Advanced Treads Advanced Treads > --- UTILITY ---------- Improved Heat Sink Improved Heat Sink Huge Storage Unit Advanced Visual Processing Unit Improved Sensor Array Improved Light Armor Plating > --- WEAPON ----------- Gauss Rifle Gauss Cannon Makeshift Hammer > --- INVENTORY -------- Light Deuterium Engine Improved Deuterium Engine Reinforced Deuterium Engine Advanced Treads Medium Treads Medium Treads Medium Treads Medium Treads Armored Wheel Armored Wheel Armored Wheel Armored Huge Wheel Armored Huge Wheel Armored Huge Wheel Improved Heat Sink Improved Sensor Array Improved Sensor Array Insulated Plating Flak Gun Gauss Cannon Gauss Cannon [Rating: 62] Favorites ----------- Power Meta Core Engine Ion Engine Power Core Meta Core Propulsion Improved Treads Treads Improved Treads Wheel Armored Huge Wheel Utility Huge Storage Unit Device Improved Heat Sink Storage Huge Storage Unit Processor Advanced Visual Processing Unit Protection Improved Light Armor Plating Weapon Gauss Cannon Energy Gun Field Laser Energy Cannon Beam Cannon Ballistic Gun Assault Rifle Ballistic Cannon Gauss Cannon Launcher Grenade Launcher Impact Weapon Makeshift Hammer Slashing Weapon Great Axe Piercing Weapon CR-A16's Pointy Stick Build | -11 -10 -10 -8 -7 -7 -7 -6 ------- Run | Yrd Mat Sub Mat Fac Low Zio Pro Slots Evolved 6 | . . . 4 2 . . . Power 1 | . . . 1 . . . . Propulsion 1 | . . . . 1 . . . Utility 4 | . . . 3 1 . . . Weapon . | . . . . . . . . Parts Attached 98 | 6 13 14 10 44 3 8 . Power 17 | 1 3 1 1 8 3 . . Engine 12 | 1 3 . . 7 1 . . Core 5 | . . 1 1 1 2 . . Reactor . | . . . . . . . . Propulsion 26 | 2 2 8 1 11 . 2 . Treads 13 | . 2 3 . 8 . . . Leg . | . . . . . . . . Wheel 13 | 2 . 5 1 3 . 2 . Hover . | . . . . . . . . Flight . | . . . . . . . . Utility 31 | 1 4 2 6 15 . 3 . Device 18 | . 2 1 3 9 . 3 . Storage 3 | 1 2 . . . . . . Processor 4 | . . . 2 2 . . . Hackware . | . . . . . . . . Protection 6 | . . 1 1 4 . . . Artifact . | . . . . . . . . Weapon 24 | 2 4 3 2 10 . 3 . Energy Gun 5 | 1 1 . . 3 . . . Energy Cannon 3 | . 1 1 1 . . . . Ballistic Gun 5 | 1 1 1 . 2 . . . Ballistic Cannon 7 | . . . 1 5 . 1 . Launcher 1 | . 1 . . . . . . Special Weapon . | . . . . . . . . Impact Weapon 1 | . . 1 . . . . . Slashing Weapon 1 | . . . . . . 1 . Piercing Weapon 1 | . . . . . . 1 . Special Melee Weapon . | . . . . . . . . Unidentified Prototypes 2 | . . 1 . . . 1 . Parts Lost 33 | . 1 4 3 23 . . 2 Power 6 | . . . . 4 . . 2 Propulsion 4 | . . . 1 3 . . . Utility 10 | . . 2 1 7 . . . Weapon 13 | . 1 2 1 9 . . . Highest Loss Streak 4 | . 1 1 1 4 . . 1 To Critical Strikes 1 | . . . 1 . . . . Average Backups 15 | . 9 16 14 19 19 14 3 Power 2 | . . 2 2 3 3 2 . Propulsion 5 | . 3 6 6 7 4 3 2 Utility 5 | . 3 5 5 6 8 5 . Weapon 1 | . 1 1 . 1 4 3 1 Tool/Special . | . . . . . . . . Unused Backups 23 | 1 1 1 4 4 . 9 3 Power 3 | . . . 1 1 . 1 . Propulsion 5 | . . . 3 . . . 2 Utility 10 | . 1 1 . 3 . 5 . Weapon 5 | 1 . . . . . 3 1 Tool/Special . | . . . . . . . . Average Slot Usage (%) 93 | . 98 96 88 92 92 91 89 Engine 7 | . 13 12 2 6 7 7 6 Core 5 | . . 1 13 7 7 7 5 Treads 11 | . 27 8 5 12 . . . Wheel 8 | . . 20 5 5 15 15 15 Device 19 | . 13 11 20 22 23 25 30 Storage 8 | . 14 13 7 7 7 4 . Processor 6 | . . . 4 8 15 15 15 Protection 1 | . . . 2 3 . . . Energy Gun 1 | . 3 . . 2 . . . Energy Cannon 5 | . 9 15 7 . . . . Ballistic Gun 4 | . 13 8 . 2 . . . Ballistic Cannon 5 | . . . 7 6 15 11 7 Impact Weapon 2 | . . 1 7 2 . . . Peak Build Rating 62 | 6 12 33 55 62 51 57 52 Average Rating 39 | 4 10 14 46 56 49 50 51 On Entrance 30 | . 6 10 29 50 49 50 52 Naked Turns . | . . . . . . . . Heaviest Build 124 | 13 91 113 124 122 116 116 32 Greatest Support 84 | 26 46 66 66 84 40 40 40 Greatest Overweight (x) 4 | . 1 4 4 3 2 2 . Average Overweight (x) 1 | . . 1 2 1 2 1 . Largest Inventory Capacity 25 | 8 25 25 25 25 25 25 5 Average Capacity 21 | 7 15 25 25 25 25 17 5 Most Carried 25 | 3 15 25 25 25 25 25 5 Average Carried 18 | . 9 20 20 22 22 16 4 Final Capacity 25 | 8 25 25 25 25 25 5 5 Final Carried 24 | . 15 17 24 24 22 5 4 Class Distribution -------------------- 100% | Mutant Dominant Class ---------------- Mutant | -10/Materials Mutant | -10/Subcaves Mutant | -8/Materials Mutant | -7/Factory Mutant | -7/Lower Caves Mutant | -7/Zion Mutant | -6/Proximity Caves Resources | -11 -10 -10 -8 -7 -7 -7 -6 ----------- Run | Yrd Mat Sub Mat Fac Low Zio Pro Matter Collected 2797 | 183 295 290 397 1298 88 136 110 Remotely . | . . . . . . . . Salvage Created 2873 | . 401 408 546 1384 101 . 33 Parts 150 | . 26 21 34 64 2 . 3 Haulers Intercepted 1 | . 1 . . . . . . Recyclers Shooed . | . . . . . . . . Parts Field Recycled . | . . . . . . . . Retrieved Matter . | . . . . . . . . Parts Self-Destructed 10 | . . 7 . . . . 3 Prevented . | . . . . . . . . Kills | -11 -10 -10 -8 -7 -7 -7 -6 ------- Run | Yrd Mat Sub Mat Fac Low Zio Pro Combat Hostiles Destroyed 76 | . 10 11 20 33 . . 2 Melee 1 | . . . . 1 . . . Guns 19 | . 5 3 . 11 . . . Cannons 45 | . 1 3 18 21 . . 2 AOE 10 | . 4 5 1 . . . . Classes Destroyed 13 | . 5 1 2 5 . . . Worker 8 | . 1 . 1 6 . . . Builder 1 | . . . . 1 . . . Hauler 1 | . 1 . . . . . . Mechanic 1 | . . . . 1 . . . Watcher 2 | . 1 . . 1 . . . Swarmer 17 | . 3 . 8 4 . . 2 Grunt 32 | . 7 1 6 18 . . . Brawler 1 | . . . . 1 . . . Duelist 1 | . . . 1 . . . . Sentry 9 | . . . 5 4 . . . Hunter 1 | . . . . 1 . . . Programmer 5 | . . . . 5 . . . Subdweller 10 | . . 10 . . . . . Decomposer 4 | . . . . . 4 . . Best Kill Streak 7 | . 4 4 7 5 . . 2 Combat Bots Only 6 | . 3 4 6 4 . . 2 Max Kills in Single Turn 2 | . 2 2 2 2 1 . 1 Gunslinging . | . . . . . . . . Exploded 2 | . 2 2 1 . . . . Melee 1 | . . . . 1 . . . Uniques/NPCs Destroyed . | . . . . . . . . Combat | -11 -10 -10 -8 -7 -7 -7 -6 -------- Run | Yrd Mat Sub Mat Fac Low Zio Pro Hostile Shots Fired 880 | . 75 52 104 574 . . 75 Missed 294 | . 27 15 32 189 . . 31 Hits 586 | . 48 37 72 385 . . 44 Melee 1 | . . . . 1 . . . Projectile 585 | . 48 37 72 384 . . 44 AOE 7 | . . 7 . . . . . Critical Strikes 12 | . . . 4 7 . . 1 Damage Taken 7875 | . 526 1095 811 4930 95 . 418 Core 1014 | . 54 134 115 598 39 . 74 Absorbed by Shields 378 | . 82 . 135 . . . 161 Core Remaining (%) 67 | 100 . 24 79 . . . . Volleys Fired 245 | . 24 35 46 137 . . 3 Largest 2 | . 2 2 2 2 . . 1 Hottest 129 | . 90 120 97 129 . . 40 Shots Fired 444 | . 46 53 88 254 . . 3 Gun 166 | . 30 25 . 111 . . . Cannon 265 | . 14 17 88 143 . . 3 Launcher 13 | . 2 11 . . . . . Special . | . . . . . . . . Kinetic 284 | . 22 25 46 188 . . 3 Thermal 133 | . 14 17 42 60 . . . Explosive 13 | . 2 11 . . . . . Electromagnetic 14 | . 8 . . 6 . . . Robot Hit Streak 11 | . 11 9 9 9 . . 2 Robot Miss Streak 5 | . 5 3 5 5 . . 1 Penetration Max . | . . . . . . . . Secondary Targets . | . . . . . . . . Shots Hit Robots 289 | . 29 32 64 162 . . 2 Core Hits 176 | . 18 16 53 85 2 . 2 Critical Kills . | . . . . . . . . Critical Parts Destroyed . | . . . . . . . . Critical Strikes 19 | . . . . 19 . . . Burn 1 | . . . . 1 . . . Blast 18 | . . . . 18 . . . Melee Attacks 17 | . . . 6 8 . 1 2 Impact 14 | . . . 6 8 . . . Slashing 1 | . . . . . . 1 . Piercing 2 | . . . . . . . 2 Sneak Attacks 1 | . . . . 1 . . . Combat Hostiles . | . . . . . . . . Follow-up Attacks . | . . . . . . . . Damage Inflicted 7864 | . 849 798 1502 4540 123 . 52 Guns 2034 | . 217 276 . 1541 . . . Cannons 4074 | . 106 192 1188 2536 . . 52 Explosions 1236 | . 513 330 164 229 . . . Melee 362 | . . . 148 214 . . . Ramming 158 | . 13 . 2 20 123 . . Kinetic 4479 | . 129 276 687 3335 . . 52 Thermal 2064 | . 430 192 501 941 . . . Explosive 683 | . 189 330 164 . . . . Electromagnetic 118 | . 88 . . 30 . . . Impact 362 | . . . 148 214 . . . Slashing . | . . . . . . . . Piercing . | . . . . . . . . Highest Corruption 9 | . . . . 7 9 9 . Average Corruption 3 | . . . . 3 8 9 . Corruption Purged . | . . . . . . . . Corruption Blocked . | . . . . . . . . Effects 53 | . . . . 48 3 2 . Message Errors 7 | . . . . 6 1 . . Matter Fused 11 | . . . . 11 . . . Heat Flow Errors 7 | . . . . 7 . . . Energy Discharges 11 | . . . . 8 1 2 . Parts Fused 1 | . . . . 1 . . . Data Loss (minor) 6 | . . . . 5 1 . . Data Loss (major) 3 | . . . . 3 . . . Misfires 3 | . . . . 3 . . . Alerts 3 | . . . . 3 . . . Weapon Failures 1 | . . . . 1 . . . Overload Shots . | . . . . . . . . Overflow Damage 297 | . 29 . 27 184 57 . . Projectiles 24 | . . . 12 12 . . . Explosions 113 | . 29 . . 84 . . . Melee 160 | . . . 15 88 57 . . Knockbacks 60 | . . . 31 29 . . . Impact 1 | . . . . 1 . . . Kinetic 54 | . . . 30 24 . . . Secondary 5 | . . . 1 4 . . . Self-Inflicted Damage 245 | . 52 22 21 90 60 . . Shots 4 | . 1 1 1 1 . . . Rammed 11 | . . . 1 3 7 . . Targets Rammed 12 | . 1 . 1 3 7 . . Kicked . | . . . . . . . . Crushed 1 | . 1 . . . . . . Highest Temperature 534 | . 180 15 348 534 . . 6 Average Temperature 95 | . 40 7 85 136 . . 6 Received Heat Transfer 2567 | . 229 81 325 1824 . . 108 Effects 11 | . . . . 11 . . . Shutdowns 2 | . . . . 2 . . . Energy Bleed 2 | . . . . 2 . . . Interference 3 | . . . . 3 . . . Short Circuit 3 | . . . . 3 . . . Damage (core) 1 | . . . . 1 . . . Siege Activations . | . . . . . . . . Martial Activations . | . . . . . . . . Shielding Activations . | . . . . . . . . Robots Disrupted . | . . . . . . . . Combat Hostiles . | . . . . . . . . Robots Corrupted 2 | . . . 1 . 1 . . Combat Hostiles 1 | . . . 1 . . . . Parts Fried 3 | . . . 2 . 1 . . Impact Corruptions 8 | . . . 2 3 3 . . Robots Melted . | . . . . . . . . Combat Hostiles . | . . . . . . . . Parts Melted 4 | . . 2 . 2 . . . Heat Transferred 3347 | . 422 407 925 1593 . . . Parts Sabotaged . | . . . . . . . . Parts Stolen . | . . . . . . . . Parts Stripped . | . . . . . . . . Power Chain Reactions 1 | . 1 . . . . . . Alert | -11 -10 -10 -8 -7 -7 -7 -6 ------- Run | Yrd Mat Sub Mat Fac Low Zio Pro Maximum Alert Level 2 | . . . 1 2 . . . Low Security (%) 70 | 100 100 . 97 41 . . . Level 1 16 | . . . 2 32 . . . Level 2 13 | . . . . 26 . . . Level 3 . | . . . . . . . . Level 4 . | . . . . . . . . Level 5 . | . . . . . . . . High Security . | . . . . . . . . Max Security . | . . . . . . . . Peak Influence 500 | . 103 . 258 500 . . . Initial 110 | . . . . 110 . . . Average 149 | . 34 . 101 237 . . . Influence Increases 2572 | . 441 30 684 1240 . . 177 Destroy 0b10 Robot/C 1320 | . 200 20 400 660 . . 40 Destroy 0b10 Robot/NC 65 | . 15 . 5 45 . . . Destroy Leader 296 | . 44 10 90 152 . . . Allied During Kill 2 | . . . . . . . 2 Successful Hack 71 | . 45 . 7 19 . . . Disable Machine 285 | . 45 . 75 165 . . . Destroy Structure 128 | . 32 . 17 79 . . . Partial Spotted 30 | . . . 15 15 . . . Lose Combat Pursuer 375 | . 60 . 75 105 . . 135 Influence Decreases 2465 | . 436 35 440 1003 279 202 70 Entered New Map 518 | . . 3 . 134 179 202 . Time Decay 1640 | . 426 20 420 644 100 . 30 Lost Part 287 | . 10 12 20 225 . . 20 Lost Ally 20 | . . . . . . . 20 Squads Dispatched 11 | . 1 . 1 9 . . . Investigation 2 | . 1 . . 1 . . . Extermination 4 | . . . . 4 . . . Reinforcement 3 | . . . 1 2 . . . Assault 2 | . . . . 2 . . . Garrison . | . . . . . . . . Intercept . | . . . . . . . . Searches Triggered . | . . . . . . . . Construction Impeded . | . . . . . . . . Haulers Reinforced . | . . . . . . . . Active Scanning Responses . | . . . . . . . . Cargo Convoy Interrupts . | . . . . . . . . Stealth | -11 -10 -10 -8 -7 -7 -7 -6 --------- Run | Yrd Mat Sub Mat Fac Low Zio Pro Distress Signals 9 | . 2 . 2 . . . 5 Communications Jammed . | . . . . . . . . Distress Signals . | . . . . . . . . Times Spotted 132 | . 15 24 32 52 . . 9 Peak Tracking Total 12 | . 4 6 7 8 . . 12 Tactical Retreats 13 | . 3 . 3 5 . . 2 Traps | -11 -10 -10 -8 -7 -7 -7 -6 ------- Run | Yrd Mat Sub Mat Fac Low Zio Pro Traps Triggered 3 | . . . . 3 . . . Indirectly . | . . . . . . . . Trap Hack Attempts . | . . . . . . . . Triggered . | . . . . . . . . Disarmed 6 | . 6 . . . . . . Reprogrammed . | . . . . . . . . Reused . | . . . . . . . . Traps Extracted . | . . . . . . . . Installed . | . . . . . . . . Triggered . | . . . . . . . . Objects Rigged 3 | . 3 . . . . . . Exploded 1 | . 1 . . . . . . Machines | -11 -10 -10 -8 -7 -7 -7 -6 ---------- Run | Yrd Mat Sub Mat Fac Low Zio Pro Machines Disabled 19 | . 3 . 5 11 . . . Max in Single Turn 5 | . 3 . 1 5 . . . Machines Repaired . | . . . . . . . . Machines Dismantled . | . . . . . . . . Machines Sabotaged . | . . . . . . . . Overloaded Fab Kills . | . . . . . . . . Hacking | -11 -10 -10 -8 -7 -7 -7 -6 --------- Run | Yrd Mat Sub Mat Fac Low Zio Pro Machines Accessed 17 | . 6 . 5 6 . . . Terminals 13 | . 4 . 5 4 . . . Fabricators 1 | . . . . 1 . . . Repair Stations 1 | . 1 . . . . . . Recycling Units 1 | . 1 . . . . . . Scanalyzers 1 | . . . . 1 . . . Garrison Access . | . . . . . . . . Total Hacks 43 | . 16 . 14 13 . . . Successful 17 | . 9 . 5 3 . . . Failed 26 | . 7 . 9 10 . . . Catastrophic 7 | . 1 . 3 3 . . . Database Lockouts . | . . . . . . . . Manual 25 | . 6 . 10 7 . 2 . Terminals 32 | . 9 . 14 9 . . . Fabricators 2 | . . . . 2 . . . Repair Stations 3 | . 3 . . . . . . Recycling Units 4 | . 4 . . . . . . Scanalyzers 2 | . . . . 2 . . . Garrison Access . | . . . . . . . . Terminal Hacks 11 | . 5 . 5 1 . . . Part Schematic 1 | . . . 1 . . . . Robot Analysis 2 | . . . 1 1 . . . Prototype ID Bank 1 | . 1 . . . . . . Alert Level 3 | . 1 . 2 . . . . Locate Traps 1 | . 1 . . . . . . Disarm Traps 1 | . 1 . . . . . . Zone Layout 2 | . 1 . 1 . . . . Fabricator Hacks 2 | . . . . 2 . . . Load Schematic 1 | . . . . 1 . . . Build 1 | . . . . 1 . . . Repair Station Hacks 1 | . 1 . . . . . . Scan Component 1 | . 1 . . . . . . Recycling Unit Hacks 1 | . 1 . . . . . . Report Inventory 1 | . 1 . . . . . . Scanalyzer . | . . . . . . . . Garrison Access Hacks . | . . . . . . . . Unauthorized Hacks 2 | . 2 . . . . . . Terminals 1 | . 1 . . . . . . Detonate 1 | . 1 . . . . . . Fabricators . | . . . . . . . . Repair Stations . | . . . . . . . . Recycling Units 1 | . 1 . . . . . . Mask 1 | . 1 . . . . . . Scanalyzers . | . . . . . . . . Garrison Access . | . . . . . . . . Data Cores Recovered . | . . . . . . . . Used . | . . . . . . . . Hacking Detections 16 | . 5 . 5 6 . . . Full Trace Events 2 | . 1 . . 1 . . . Feedback Events . | . . . . . . . . Feedback Blocked . | . . . . . . . . Robot Schematics Acquired 2 | . . . . . . 2 . Robots Built . | . . . . . . . . Authchips . | . . . . . . . . Time . | . . . . . . . . Total Robot Build Rating . | . . . . . . . . Part Schematics Acquired 17 | . . . 1 . . 16 . Parts Built . | . . . . . . . . Authchips . | . . . . . . . . Time 62 | . . . . 62 . . . Total Part Build Rating . | . . . . . . . . Parts Repaired . | . . . . . . . . Time . | . . . . . . . . Parts Recycled . | . . . . . . . . Recycled Matter . | . . . . . . . . Retrieved Matter . | . . . . . . . . Retrieved Components . | . . . . . . . . Parts Scanalyzed . | . . . . . . . . Part Schematics Acquired . | . . . . . . . . Parts Damaged . | . . . . . . . . Bothacking | -11 -10 -10 -8 -7 -7 -7 -6 ------------ Run | Yrd Mat Sub Mat Fac Low Zio Pro Used RIF Installer . | . . . . . . . . Robots Hacked . | . . . . . . . . Non-combat . | . . . . . . . . Combat . | . . . . . . . . Robot Hacks Applied . | . . . . . . . . Relay Couplers Released . | . . . . . . . . Fabnet Peak Effective % . | . . . . . . . . Robots Rewired . | . . . . . . . . Allies Hacked . | . . . . . . . . Hacks Repelled . | . . . . . . . . Allies | -11 -10 -10 -8 -7 -7 -7 -6 -------- Run | Yrd Mat Sub Mat Fac Low Zio Pro Total Allies 4 | . . . . . . 4 . Largest Group 4 | . . . . . . 4 4 Highest-Rated Group 151 | . . . . . . 151 151 Highest-Rated Ally 39 | . . . . . . 39 39 Total Orders . | . . . . . . . . Ally Attacks 3 | . . . . . . . 3 Total Damage 50 | . . . . . . . 50 Kills . | . . . . . . . . Allies Corrupted . | . . . . . . . . Allies Melted . | . . . . . . . . Intel | -11 -10 -10 -8 -7 -7 -7 -6 ------- Run | Yrd Mat Sub Mat Fac Low Zio Pro Active Infowar (turns) 7832 | . 1054 1012 1292 2808 211 1257 198 Optics 3961 | . . . . 2295 211 1257 198 Sensors 5585 | . 1054 150 67 2648 211 1257 198 Seismic 2087 | . . 862 1225 . . . . Robot Analysis Total 2 | . . . 1 1 . . . Derelict Logs Recovered 4 | . . 1 . . 1 2 . Drone Launches . | . . . . . . . . Drone Recoveries . | . . . . . . . . Exploration | -11 -10 -10 -8 -7 -7 -7 -6 ------------- Run | Yrd Mat Sub Mat Fac Low Zio Pro Turns Passed 8700 | 65 1594 1218 1296 2861 211 1257 198 Spaces Moved 4647 | 65 732 731 514 1339 158 940 168 Core 16 | 16 . . . . . . . Treads 1486 | . 724 103 109 550 . . . Legs . | . . . . . . . . Wheels 3145 | 49 8 628 405 789 158 940 168 Hover . | . . . . . . . . Flight . | . . . . . . . . Fastest Speed 50 | 50 90 130 145 125 125 95 95 Average Speed 153 | 80 190 145 175 169 125 114 95 Slowest Speed 320 | 90 240 240 320 305 125 125 95 Overloaded Moves . | . . . . . . . . Propulsion Burnouts . | . . . . . . . . Robots Hopped . | . . . . . . . . Potential Cave-ins . | . . . . . . . . Cave-ins Triggered . | . . . . . . . . Exploration Rate (%) 40 | 5 77 38 42 30 25 84 26 Regions Visited 7 Branch Regions 4 Pre-discovered Areas 2 | . . 1 . . . 1 . Known Exits Taken 1 | . . . 1 . . . . Unknown Exits Taken 6 | 1 1 1 . 1 1 1 . Scrap Searched 7 | . . 1 . . . 3 3 Spaces Dug 24 | . . 18 . 6 . . . Terrain Destroyed 174 | . 33 42 16 82 . . 1 Melee 3 | . . . . 3 . . . Projectile 48 | . . . 3 44 . . 1 AOE 123 | . 33 42 13 35 . . . Terrain Rammed . | . . . . . . . . Walls Destroyed . | . . . . . . . . Machines Disabled . | . . . . . . . . Actions | -11 -10 -10 -8 -7 -7 -7 -6 --------- Run | Yrd Mat Sub Mat Fac Low Zio Pro Total 5829 | 78 884 842 840 1681 170 1134 200 Wait 544 | . 77 29 203 64 . 145 26 Move 4640 | 64 731 730 513 1338 157 939 168 Hop . | . . . . . . . . Pick Up 139 | 7 26 15 32 48 . 11 . Fast Attach . | . . . . . . . . Attach 85 | 6 6 14 12 38 1 7 1 Detach 29 | . 2 8 5 10 1 3 . Swap 30 | . 8 2 1 15 2 2 . Drop 88 | 1 9 9 21 20 2 26 . Fire 245 | . 24 35 46 137 . . 3 Melee 17 | . . . 6 8 . 1 2 Ram 9 | . . . 1 1 7 . . Kick . | . . . . . . . . Crush 3 | . 1 . . 2 . . . Escape Stasis . | . . . . . . . . Rewire . | . . . . . . . . Trap . | . . . . . . . . Miscellaneous . | . . . . . . . . Route ------- -11/Scrapyard -10/Materials (discovered 5 exits: [*Mat x2] / [*Min x2] / [*Sub]) -10/Subcaves -8/Materials -7/Factory -7/Lower Caves -7/Zion (discovered 2 exits: Dee / [*Pro]) -6/Proximity Caves History --------- Turn | Location | Event 41 | -11/Scrapyard | Discovered new exit (range 16) 66 | -11/Scrapyard | Entered Materials 318 | -10/Materials | Build established: Mutant 431 | -10/Materials | Discovered new exit (range 13) 787 | -10/Materials | Discovered new exit (range 8) 1218 | -10/Materials | Discovered new exit (range 12) 1362 | -10/Materials | Discovered new exit (range 14) 1532 | -10/Materials | Discovered new exit (range 18) 1660 | -10/Materials | Entered Subcaves 1661 | -10/Subcaves | Approached by a straggling Scientist 1795 | -10/Subcaves | Ambushed by swarm of Subdwellers 2690 | -10/Subcaves | A Subdweller sparked back to life 2690 | -10/Subcaves | A Subdweller sparked back to life 2699 | -10/Subcaves | Core integrity fell below 50% 2724 | -10/Subcaves | Found Prototype Power Core 2725 | -10/Subcaves | Identified Meta Core 2726 | -10/Subcaves | Attached Meta Core, gained temporary slots: Propulsion, Utility, Weapon 2774 | -10/Subcaves | Ambushed by Subdweller buried in earth 2798 | -10/Subcaves | Lost 4 allies 2849 | -10/Subcaves | Discovered new exit (range 11) 2878 | -10/Subcaves | Entered Materials 2878 | -8/Materials | Evolved 4 slots: Power x1, Utility x3 4027 | -8/Materials | Discovered new exit (range 8) 4173 | -8/Materials | Identified exit to Factory 4174 | -8/Materials | Entered Factory 4174 | -7/Factory | Evolved 2 slots: Propulsion x1, Utility x1 5473 | -7/Factory | Core integrity fell below 50% 6115 | -7/Factory | Lost 3 parts (2u1w) 6360 | -7/Factory | Lost 4 parts (3u1w) 6574 | -7/Factory | First assault squad dispatched 6736 | -7/Factory | Core integrity fell below 20% 6759 | -7/Factory | Lost 3 parts (2p1w) 7022 | -7/Factory | Discovered new exit (range 10) 7035 | -7/Factory | Entered Lower Caves 7218 | -7/Lower Caves | A Derelict revealed a hidden shortcut to a safe place 7240 | -7/Lower Caves | Learned Factory garrison access intel 7246 | -7/Lower Caves | Entered Zion 7309 | -7/Zion | Discovered new exit (range 18) 7329 | -7/Zion | System corruption cleaned by Quarantine Array 7493 | -7/Zion | Identified exit to Deep Caves 7562 | -7/Zion | Learned location of Quarantine (-3) 7864 | -7/Zion | Met Imprinter 7886 | -7/Zion | Imprinted 7889 | -7/Zion | Declared Zion's savior 8032 | -7/Zion | Given the Hacking Drone Bay 8032 | -7/Zion | Found Prototype Device 8034 | -7/Zion | Identified Hacking Drone Bay 8374 | -7/Zion | Found CR-A16's Pointy Stick 8414 | -7/Zion | Received a hallucinogenic algorithm 8415 | -7/Zion | Ran a hallucination algorithm 8423 | -7/Zion | Ran a hallucination algorithm 8503 | -7/Zion | Entered Proximity Caves 8503 | -6/Proximity Caves | Accompanied by 4 allies 8616 | -6/Proximity Caves | Attracted the attention of an 0b10 base 8655 | -6/Proximity Caves | Attracted the attention of an 0b10 checkpoint 8663 | -6/Proximity Caves | Lost 4 allies 8701 | -6/Proximity Caves | Destroyed by G-50 Soldier with Heavy Laser Last Messages --------------- 08549_ Searching scrap... 08549_ Found Adv. Targeting Computer. 08549_ Found 55 Matter. 08550_ Acquired 55 matter. 08574_ Searching scrap... 08574_ Found Matter Compressor. 08574_ Found Hvy. Flail. 08574_ Found Weapon Cycler. 08574_ Found 52 Matter. 08605_ RE-TRG(M) destroyed. 08616_ Critical hit (Burn: +27). 08631_ S-27 Virus destroyed. 08637_ VTOL Module fries itself beyond repair. 08639_ S-27 Virus destroyed. 08647_ Lgt. Nuclear Core fries itself beyond repair. 08655_ Y-54 Guardian: "INTERCEPTING UNREGISTERED DERELICT." 08657_ Mic. Nuclear Core destroyed. 08698_ Imp. Deuterium Engine destroyed. Map ----- +----------------------------------------------------+ | ?????????????????????????????????????????????????? | | ?????????????????????????????????????????????????? | | ?????????????????????????????????????????????????? | | ?????????????????????????????????????????????????? | | ?????????????????????????????????????????????????? | | ?????????????????????????????????????????????????? | | ?????????????????????????????????????????????????? | | ?????????????????????????????????????????????????? | | ?????????????????????????????????????????????????? | | ?????????????????????????????????????????????????? | | ?????????????????????????????????????????????????? | | ?????????????????????????????????????????????????? | | ?????????????????????????????????????????????????? | | ?????????????????????????????????????????????????? | | ?????????????????????????????????????????????????? | | ?????????????????????????????????????????????????? | | ?????????????????????????????????????????????????? | | ??????????????????????#++#???????????????????????? | | ??????????????????????# #???????????????????????? | | ??????????????????????# #???????????????????????? | | ??????????????????????# ##??????????????????????? | | ??????????####????????# #??????????????????????? | | ??????????# #??????### #??????????????????????? | | ?????????## #??????# #??????????????????????? | | ########## ######## #??????????????????????? | | @#####??????????????????? | | ####### #??????????????????? | | ??????# ###### ##?????????????????? | | ?????# Y #?????????????????? | | ??# g #?????????????????? | | ?# ######## ##?????????????????? | | #?????# #??????????????????? | | #????# #??????????????????? | | #### #???# #??????????????????? | | # #???### #??# #??????????????????? | | ## #?????? #??## #??????????????????? | | ?# #?????? ##???# ##?????????????????? | | ??# #??????? #????# #?????????????????? | | ??# #??????? #????## ##????????????????? | | ??# #????????#?????## ##???????????????? | | ??# #??????????????## #???????????????? | | ??#########??????????????# #???????????????? | | ????????????????????????# ##???????????????? | | ????????????????????????##### ##????????????????? | | ????????????????????????????####?????????????????? | | ?????????????????????????????????????????????????? | | ?????????????????????????????????????????????????? | | ?????????????????????????????????????????????????? | | ?????????????????????????????????????????????????? | | ?????????????????????????????????????????????????? | +----------------------------------------------------+ Best States ------------- Heat Dissipation 62 Energy Generation 28 Energy Capacity 370 Matter Stores 300 Matter Capacity 300 Sight Range 20 Robot Scan Range 15 Terrain Scan Density 10 Armor Coverage 800 Resistance: EM 15 Weapon Cycling 15 Evasion (%) 50 Target Analysis 5 Recoil Reduction 3 Matter Filtering 30 Kinecelleration 30 Item Schematics ----------------- Arm. Wheel | -8/Materials | Hacked Plasma Cannon | -7/Zion | Archive Adv. Signal Interpreter | -7/Zion | Archive Coolant Injector | -7/Zion | Archive Thermic Laser | -7/Zion | Archive Imp. Carbon-fiber Leg | -7/Zion | Archive Power Sword | -7/Zion | Archive Gatling Laser | -7/Zion | Archive Hvy. Phase Cannon | -7/Zion | Archive Enh. Gauss Cannon | -7/Zion | Archive Gravmag System | -7/Zion | Archive Matter Compressor | -7/Zion | Archive Microactuators | -7/Zion | Archive Nuclear Pulse Thruster | -7/Zion | Archive Adv. Sensor Array | -7/Zion | Archive Med. Treads | -7/Zion | Archive Tiamat Missile Launcher | -7/Zion | Archive Robot Schematics ------------------ S-27 Virus | -7/Zion | Archive B-48 Gladiator | -7/Zion | Archive Fabricated ------------ Nothing Repaired ---------- Nothing Alien Tech Used ----------------- None Achievements -------------- None Challenges ------------ None Game ------ Seed DataTeslaDriver Manual? 0 Play Time 01:36:03 Cumulative 41.5 hours Start 2025.08.12 @ 19:14:45 End 2025.08.12 @ 20:55:44 Sessions 1 Manual Loads 0 Difficulty Rogue Special Mode None Game No. 48 Rogue 48 Adventurer 0 Explorer 0 Win Type - Total 0 Types 0/0/0/0/0/0/0/0/0/0 Lore% 17 Gallery% 31 Achievement% 23 Wizard Run 0 Options --------- Layout 1 ASCII 0 Keyboard 1 Movement Numpad Keybinds 0 Fullscreen 2 Font 20/SmallcapsGlow Map View 50x35 Zoom Use 0% Tactical HUD 1 Map Filters NONE Filters NONE Steam 1 RUN: fe94b859-b038-4fdc-a7ec-11b1abcc0c20